[Event "Titled Tuesday Blitz March 22 Late 2022"]
[White "Kostiukov, Alexandr"]
[Black "Levitskiy, Andrey"]
[WhiteFideId "14108100"]
[BlackFideId "14132885"]
[WhiteElo "2202"]
[BlackElo "2301"]
[Result "1-0"]
[Round "05"]
[TimeControl "180+1"]
[Date "2022.03.22"]
[WhiteClock "0:00:15"]
[BlackClock "0:00:09"]

1. g3 {[%clk 0:03:00]}  d5 {[%clk 0:02:55]} 2. Bg2 {[%clk 0:03:00]}  Nf6 {[%clk 0:02:55]} 3. d3 {[%clk 0:03:00]}  Bf5 {[%clk 0:02:55]} 4. Nc3 {[%clk 0:03:00]}  e6 {[%clk 0:02:55]} 5. e4 {[%clk 0:03:00]}  Bg6 {[%clk 0:02:53]} 6. e5 {[%clk 0:02:59]}  Nfd7 {[%clk 0:02:50]} 7. Qe2 {[%clk 0:02:59]}  Be7 {[%clk 0:02:44]} 8. Nf3 {[%clk 0:02:58]}  O-O {[%clk 0:02:41]} 9. O-O {[%clk 0:02:58]}  c5 {[%clk 0:02:40]} 10. h4 {[%clk 0:02:53]}  Nc6 {[%clk 0:02:38]} 11. Bf4 {[%clk 0:02:52]}  Bh5 {[%clk 0:02:07]} 12. Rfe1 {[%clk 0:02:36]}  Nd4 {[%clk 0:02:04]} 13. Qd1 {[%clk 0:02:35]}  f6 {[%clk 0:01:42]} 14. exf6 {[%clk 0:02:01]}  Rxf6 {[%clk 0:01:41]} 15. Nxd4 {[%clk 0:01:10]}  Bxd1 {[%clk 0:01:39]} 16. Nxe6 {[%clk 0:01:10]}  Rxe6 {[%clk 0:01:03]} 17. Rxe6 {[%clk 0:01:03]}  Bxc2 {[%clk 0:01:03]} 18. Bxd5 {[%clk 0:00:52]}  Nb6 {[%clk 0:00:46]} 19. Rxb6+ {[%clk 0:00:42]}  Kh8 {[%clk 0:00:34]} 20. Rxb7 {[%clk 0:00:39]}  Bf6 {[%clk 0:00:23]} 21. Be4 {[%clk 0:00:13]}  Rc8 {[%clk 0:00:09]} 22. Re1 {[%clk 0:00:11]}  Bxd3 {[%clk 0:00:08]} 23. Bxd3 {[%clk 0:00:11]}  Qxd3 {[%clk 0:00:07]} 24. Bg5 {[%clk 0:00:11]}  Bxg5 {[%clk 0:00:07]} 25. hxg5 {[%clk 0:00:12]}  h6 {[%clk 0:00:05]} 26. gxh6 {[%clk 0:00:11]}  gxh6 {[%clk 0:00:06]} 27. Ree7 {[%clk 0:00:10]}  Rf8 {[%clk 0:00:05]} 28. Rh7+ {[%clk 0:00:07]}  Qxh7 {[%clk 0:00:05]} 29. Rxh7+ {[%clk 0:00:08]}  Kxh7 {[%clk 0:00:05]} 30. Ne4 {[%clk 0:00:08]}  Rb8 {[%clk 0:00:05]} 31. b3 {[%clk 0:00:08]}  Rb5 {[%clk 0:00:04]} 32. Nd6 {[%clk 0:00:07]}  Ra5 {[%clk 0:00:04]} 33. a4 {[%clk 0:00:07]}  Ra6 {[%clk 0:00:03]} 34. Nb5 {[%clk 0:00:06]}  Rb6 {[%clk 0:00:03]} 35. Nxa7 {[%clk 0:00:05]}  Rxb3 {[%clk 0:00:03]} 36. a5 {[%clk 0:00:06]}  Ra3 {[%clk 0:00:04]} 37. Nc6 {[%clk 0:00:05]}  c4 {[%clk 0:00:04]} 38. a6 {[%clk 0:00:05]}  Rxa6 {[%clk 0:00:03]} 39. Nb4 {[%clk 0:00:06]}  Rc6 {[%clk 0:00:03]} 40. Nxc6 {[%clk 0:00:06]}  c3 {[%clk 0:00:02]} 41. Nd4 {[%clk 0:00:07]}  Kg6 {[%clk 0:00:03]} 42. Nc2 {[%clk 0:00:07]}  Kf6 {[%clk 0:00:03]} 43. Kf1 {[%clk 0:00:08]}  Ke5 {[%clk 0:00:04]} 44. Ke2 {[%clk 0:00:09]}  Ke4 {[%clk 0:00:05]} 45. f3+ {[%clk 0:00:09]}  Kd5 {[%clk 0:00:05]} 46. Kd3 {[%clk 0:00:10]}  h5 {[%clk 0:00:05]} 47. Kxc3 {[%clk 0:00:10]}  h4 {[%clk 0:00:06]} 48. gxh4 {[%clk 0:00:11]}  Ke5 {[%clk 0:00:07]} 49. h5 {[%clk 0:00:11]}  Kf5 {[%clk 0:00:07]} 50. Kd3 {[%clk 0:00:12]}  Kg5 {[%clk 0:00:08]} 51. Ke3 {[%clk 0:00:13]}  Kxh5 {[%clk 0:00:09]} 52. f4 {[%clk 0:00:14]}  Kg4 {[%clk 0:00:09]} 53. Ke4 {[%clk 0:00:15]} 1-0


[Site "https://www.chess.com"]

[Event "Titled Tuesday Blitz March 22 Late 2022"]
[White "Kozak, Adam"]
[Black "Pinheiro, Iung Alicio de O."]
[WhiteFideId "753246"]
[BlackFideId "2104350"]
[WhiteElo "2459"]
[BlackElo "2535"]
[Result "1-0"]
[Round "05"]
[TimeControl "180+1"]
[Date "2022.03.22"]
[WhiteClock "0:02:09"]
[BlackClock "0:00:04"]

1. e4 {[%clk 0:02:57]}  c5 {[%clk 0:02:59]} 2. c3 {[%clk 0:02:56]}  g6 {[%clk 0:02:58]} 3. d4 {[%clk 0:02:56]}  cxd4 {[%clk 0:02:58]} 4. cxd4 {[%clk 0:02:56]}  d5 {[%clk 0:02:58]} 5. e5 {[%clk 0:02:57]}  Bg7 {[%clk 0:02:57]} 6. Nc3 {[%clk 0:02:55]}  Nh6 {[%clk 0:02:56]} 7. h3 {[%clk 0:02:54]}  O-O {[%clk 0:02:52]} 8. Nf3 {[%clk 0:02:53]}  Nc6 {[%clk 0:02:45]} 9. Be2 {[%clk 0:02:51]}  f6 {[%clk 0:02:44]} 10. exf6 {[%clk 0:02:51]}  exf6 {[%clk 0:02:42]} 11. O-O {[%clk 0:02:50]}  Nf5 {[%clk 0:02:22]} 12. b3 {[%clk 0:02:41]}  g5 {[%clk 0:02:18]} 13. Nxd5 {[%clk 0:02:40]}  Kh8 {[%clk 0:02:13]} 14. Ne3 {[%clk 0:02:38]}  Nfxd4 {[%clk 0:02:12]} 15. Bb2 {[%clk 0:02:31]}  f5 {[%clk 0:02:04]} 16. Nxd4 {[%clk 0:02:25]}  Nxd4 {[%clk 0:02:00]} 17. Bc4 {[%clk 0:02:25]}  b5 {[%clk 0:01:41]} 18. Bd5 {[%clk 0:02:22]}  Qb6 {[%clk 0:00:22]} 19. Bxa8 {[%clk 0:02:18]}  Be6 {[%clk 0:00:22]} 20. Bd5 {[%clk 0:02:16]}  Bd7 {[%clk 0:00:22]} 21. Nc2 {[%clk 0:02:12]}  Ne2+ {[%clk 0:00:03]} 22. Qxe2 {[%clk 0:02:12]}  Bxb2 {[%clk 0:00:04]} 23. Rad1 {[%clk 0:02:11]}  Bf6 {[%clk 0:00:04]} 24. Ne3 {[%clk 0:02:10]}  f4 {[%clk 0:00:04]} 25. Ng4 {[%clk 0:02:09]} 1-0


[Site "https://www.chess.com"]

[Event "Titled Tuesday Blitz March 22 Late 2022"]
[White "Krstulovic, Alex"]
[Black "Aydin, Gulenay"]
[WhiteFideId "760056"]
[BlackFideId "34557431"]
[WhiteElo "2193"]
[BlackElo "1429"]
[Result "0-1"]
[Round "05"]
[TimeControl "180+1"]
[Date "2022.03.22"]
[WhiteClock "0:00:49"]
[BlackClock "0:01:03"]

1. e4 {[%clk 0:02:42]}  c5 {[%clk 0:02:58]} 2. Nf3 {[%clk 0:02:41]}  d6 {[%clk 0:02:59]} 3. d4 {[%clk 0:02:40]}  cxd4 {[%clk 0:02:59]} 4. Nxd4 {[%clk 0:02:41]}  Nf6 {[%clk 0:02:57]} 5. Nc3 {[%clk 0:02:40]}  g6 {[%clk 0:02:58]} 6. f3 {[%clk 0:02:37]}  Bg7 {[%clk 0:02:58]} 7. Be3 {[%clk 0:02:37]}  a6 {[%clk 0:02:56]} 8. Qd2 {[%clk 0:02:30]}  h5 {[%clk 0:02:56]} 9. Bc4 {[%clk 0:02:22]}  b5 {[%clk 0:02:46]} 10. Bb3 {[%clk 0:02:21]}  Bb7 {[%clk 0:02:47]} 11. O-O-O {[%clk 0:02:20]}  Nbd7 {[%clk 0:02:47]} 12. f4 {[%clk 0:01:59]}  Nxe4 {[%clk 0:02:34]} 13. Nxe4 {[%clk 0:01:59]}  Bxe4 {[%clk 0:02:35]} 14. Rhe1 {[%clk 0:01:44]}  Rc8 {[%clk 0:02:33]} 15. Bf2 {[%clk 0:01:43]}  Nc5 {[%clk 0:02:30]} 16. f5 {[%clk 0:01:29]}  gxf5 {[%clk 0:02:02]} 17. c3 {[%clk 0:01:17]}  Qa5 {[%clk 0:01:46]} 18. Qg5 {[%clk 0:01:10]}  Nxb3+ {[%clk 0:01:11]} 19. axb3 {[%clk 0:00:49]}  Rxc3+ {[%clk 0:01:06]} 20. Kd2 {[%clk 0:00:49]}  Rg3+ {[%clk 0:01:03]} 0-1


[Site "https://www.chess.com"]

[Event "Titled Tuesday Blitz March 22 Late 2022"]
[White "Kujawski, Adam"]
[Black "Ladan, Nicholas"]
[WhiteFideId "1100920"]
[BlackFideId "30918855"]
[WhiteElo "2053"]
[BlackElo "2167"]
[Result "1-0"]
[Round "05"]
[TimeControl "180+1"]
[Date "2022.03.22"]
[WhiteClock "0:00:07"]
[BlackClock "0:00:08"]

1. e4 {[%clk 0:02:57]}  Nf6 {[%clk 0:02:58]} 2. e5 {[%clk 0:02:57]}  Nd5 {[%clk 0:02:58]} 3. d4 {[%clk 0:02:57]}  d6 {[%clk 0:02:59]} 4. Nf3 {[%clk 0:02:57]}  dxe5 {[%clk 0:02:58]} 5. Nxe5 {[%clk 0:02:56]}  c6 {[%clk 0:02:59]} 6. Be2 {[%clk 0:02:55]}  g6 {[%clk 0:02:58]} 7. c4 {[%clk 0:02:52]}  Nc7 {[%clk 0:02:57]} 8. O-O {[%clk 0:02:50]}  Bg7 {[%clk 0:02:58]} 9. Nc3 {[%clk 0:02:50]}  Nd7 {[%clk 0:02:58]} 10. Nf3 {[%clk 0:02:41]}  O-O {[%clk 0:02:57]} 11. Be3 {[%clk 0:02:37]}  Re8 {[%clk 0:02:51]} 12. h3 {[%clk 0:02:11]}  e5 {[%clk 0:02:33]} 13. d5 {[%clk 0:01:54]}  e4 {[%clk 0:02:30]} 14. Nd4 {[%clk 0:01:52]}  cxd5 {[%clk 0:02:29]} 15. cxd5 {[%clk 0:01:47]}  Nb6 {[%clk 0:02:26]} 16. Ndb5 {[%clk 0:01:24]}  Nbxd5 {[%clk 0:01:42]} 17. Nxc7 {[%clk 0:01:16]}  Nxc7 {[%clk 0:01:36]} 18. Qxd8 {[%clk 0:01:12]}  Rxd8 {[%clk 0:01:37]} 19. Nxe4 {[%clk 0:01:04]}  Bf5 {[%clk 0:00:59]} 20. Bf3 {[%clk 0:00:47]}  Nd5 {[%clk 0:00:59]} 21. Bg5 {[%clk 0:00:41]}  f6 {[%clk 0:00:38]} 22. Bd2 {[%clk 0:00:40]}  Nb6 {[%clk 0:00:31]} 23. Bc3 {[%clk 0:00:31]}  Kf7 {[%clk 0:00:30]} 24. Rad1 {[%clk 0:00:24]}  Nc4 {[%clk 0:00:22]} 25. Nc5 {[%clk 0:00:20]}  Rxd1 {[%clk 0:00:08]} 26. Rxd1 {[%clk 0:00:20]}  Rc8 {[%clk 0:00:09]} 27. Nxb7 {[%clk 0:00:19]}  Be6 {[%clk 0:00:05]} 28. a3 {[%clk 0:00:16]}  Nxa3 {[%clk 0:00:04]} 29. Nd6+ {[%clk 0:00:16]}  Kg8 {[%clk 0:00:03]} 30. Nxc8 {[%clk 0:00:17]}  Nb5 {[%clk 0:00:03]} 31. Nd6 {[%clk 0:00:16]}  Nxd6 {[%clk 0:00:04]} 32. Rxd6 {[%clk 0:00:15]}  Kf7 {[%clk 0:00:04]} 33. Ra6 {[%clk 0:00:14]}  g5 {[%clk 0:00:03]} 34. Rxa7+ {[%clk 0:00:14]}  Kg6 {[%clk 0:00:03]} 35. Ra6 {[%clk 0:00:12]}  Bf5 {[%clk 0:00:03]} 36. g4 {[%clk 0:00:09]}  Bd3 {[%clk 0:00:03]} 37. Ra7 {[%clk 0:00:09]}  h6 {[%clk 0:00:03]} 38. Re7 {[%clk 0:00:08]}  h5 {[%clk 0:00:03]} 39. Be4+ {[%clk 0:00:09]}  Bxe4 {[%clk 0:00:02]} 40. Rxe4 {[%clk 0:00:09]}  hxg4 {[%clk 0:00:03]} 41. hxg4 {[%clk 0:00:10]}  Bf8 {[%clk 0:00:03]} 42. Rc4 {[%clk 0:00:10]}  Bg7 {[%clk 0:00:04]} 43. Kg2 {[%clk 0:00:10]}  f5 {[%clk 0:00:04]} 44. Rc6+ {[%clk 0:00:09]}  Bf6 {[%clk 0:00:02]} 45. Rxf6+ {[%clk 0:00:08]}  Kh7 {[%clk 0:00:03]} 46. Rxf5 {[%clk 0:00:09]}  Kh6 {[%clk 0:00:03]} 47. Rf6+ {[%clk 0:00:09]}  Kg7 {[%clk 0:00:03]} 48. f4 {[%clk 0:00:09]}  Kh7 {[%clk 0:00:03]} 49. Kf3 {[%clk 0:00:09]}  Kg7 {[%clk 0:00:04]} 50. fxg5 {[%clk 0:00:09]}  Kh7 {[%clk 0:00:05]} 51. Kf4 {[%clk 0:00:10]}  Kg7 {[%clk 0:00:06]} 52. Kf5 {[%clk 0:00:10]}  Kh7 {[%clk 0:00:07]} 53. Rf7+ {[%clk 0:00:11]}  Kg8 {[%clk 0:00:07]} 54. Rg7+ {[%clk 0:00:10]}  Kh8 {[%clk 0:00:07]} 55. Rb7+ {[%clk 0:00:09]}  Kg8 {[%clk 0:00:07]} 56. Kf6 {[%clk 0:00:09]}  Kf8 {[%clk 0:00:08]} 57. Rb8# {[%clk 0:00:07]} 1-0


[Site "https://www.chess.com"]

[Event "Titled Tuesday Blitz March 22 Late 2022"]
[White "Liu, Leonardo"]
[Black "Seul, Georg"]
[WhiteFideId "30965780"]
[BlackFideId "4601653"]
[WhiteElo "2297"]
[BlackElo "2271"]
[Result "0-1"]
[Round "05"]
[TimeControl "180+1"]
[Date "2022.03.22"]
[WhiteClock "0:00:15"]
[BlackClock "0:00:05"]

1. e4 {[%clk 0:03:00]}  c6 {[%clk 0:02:58]} 2. Nc3 {[%clk 0:03:00]}  d5 {[%clk 0:02:57]} 3. Nf3 {[%clk 0:03:01]}  Bg4 {[%clk 0:02:57]} 4. h3 {[%clk 0:03:01]}  Bxf3 {[%clk 0:02:58]} 5. Qxf3 {[%clk 0:03:01]}  e6 {[%clk 0:02:59]} 6. Be2 {[%clk 0:02:58]}  d4 {[%clk 0:02:48]} 7. Nb1 {[%clk 0:02:57]}  Nd7 {[%clk 0:02:44]} 8. d3 {[%clk 0:02:56]}  Bd6 {[%clk 0:02:36]} 9. O-O {[%clk 0:02:55]}  Ne7 {[%clk 0:02:33]} 10. Bf4 {[%clk 0:02:55]}  Bxf4 {[%clk 0:02:30]} 11. Qxf4 {[%clk 0:02:56]}  e5 {[%clk 0:02:30]} 12. Qg3 {[%clk 0:02:55]}  Ng6 {[%clk 0:02:25]} 13. Nd2 {[%clk 0:02:53]}  O-O {[%clk 0:02:24]} 14. Bg4 {[%clk 0:02:35]}  Nf6 {[%clk 0:02:14]} 15. Nc4 {[%clk 0:02:32]}  Qe7 {[%clk 0:02:13]} 16. a4 {[%clk 0:02:16]}  Nf4 {[%clk 0:02:07]} 17. a5 {[%clk 0:02:13]}  h5 {[%clk 0:02:01]} 18. Bf3 {[%clk 0:02:09]}  g6 {[%clk 0:01:50]} 19. Qh2 {[%clk 0:02:07]}  h4 {[%clk 0:01:49]} 20. g3 {[%clk 0:02:08]}  hxg3 {[%clk 0:01:47]} 21. fxg3 {[%clk 0:02:08]}  N4h5 {[%clk 0:01:45]} 22. Qf2 {[%clk 0:02:02]}  Kg7 {[%clk 0:01:34]} 23. Bg2 {[%clk 0:01:54]}  Rae8 {[%clk 0:01:22]} 24. c3 {[%clk 0:01:49]}  c5 {[%clk 0:01:21]} 25. b4 {[%clk 0:01:43]}  Rd8 {[%clk 0:01:16]} 26. cxd4 {[%clk 0:01:38]}  Rxd4 {[%clk 0:01:06]} 27. bxc5 {[%clk 0:01:34]}  Qxc5 {[%clk 0:01:05]} 28. Rfd1 {[%clk 0:01:33]}  Nxg3 {[%clk 0:01:00]} 29. Qxg3 {[%clk 0:01:29]}  Rxc4+ {[%clk 0:00:59]} 30. Kh2 {[%clk 0:01:27]}  Rd4 {[%clk 0:00:57]} 31. Rdc1 {[%clk 0:01:21]}  Qd6 {[%clk 0:00:57]} 32. Bf1 {[%clk 0:01:17]}  Nh5 {[%clk 0:00:56]} 33. Qf3 {[%clk 0:01:14]}  Nf4 {[%clk 0:00:54]} 34. Rc3 {[%clk 0:01:14]}  Rd8 {[%clk 0:00:42]} 35. Rb1 {[%clk 0:01:07]}  Qe7 {[%clk 0:00:39]} 36. Rbc1 {[%clk 0:01:04]}  R8d7 {[%clk 0:00:38]} 37. Be2 {[%clk 0:00:53]}  Qd8 {[%clk 0:00:36]} 38. Rc8 {[%clk 0:00:48]}  Qxa5 {[%clk 0:00:36]} 39. R1c3 {[%clk 0:00:38]}  Qa2 {[%clk 0:00:32]} 40. Rc2 {[%clk 0:00:38]}  Qe6 {[%clk 0:00:30]} 41. R8c3 {[%clk 0:00:36]}  Rd8 {[%clk 0:00:28]} 42. Qe3 {[%clk 0:00:34]}  Rh8 {[%clk 0:00:26]} 43. Bf1 {[%clk 0:00:33]}  b6 {[%clk 0:00:20]} 44. Rc6 {[%clk 0:00:29]}  Qe7 {[%clk 0:00:08]} 45. Rc7 {[%clk 0:00:29]}  Qf6 {[%clk 0:00:08]} 46. R7c6 {[%clk 0:00:27]}  Qh4 {[%clk 0:00:07]} 47. R6c3 {[%clk 0:00:25]}  Rhd8 {[%clk 0:00:05]} 48. Ra2 {[%clk 0:00:24]}  R8d7 {[%clk 0:00:06]} 49. Rac2 {[%clk 0:00:24]}  Qg5 {[%clk 0:00:06]} 50. Rf2 {[%clk 0:00:20]}  Qf6 {[%clk 0:00:06]} 51. Bg2 {[%clk 0:00:20]}  a5 {[%clk 0:00:07]} 52. Bf3 {[%clk 0:00:20]}  a4 {[%clk 0:00:07]} 53. Be2 {[%clk 0:00:20]}  b5 {[%clk 0:00:06]} 54. Qc1 {[%clk 0:00:20]}  b4 {[%clk 0:00:07]} 55. Rc6 {[%clk 0:00:19]}  R7d6 {[%clk 0:00:07]} 56. Rc7 {[%clk 0:00:18]}  Qh4 {[%clk 0:00:07]} 57. Kg1 {[%clk 0:00:17]}  Qg3+ {[%clk 0:00:06]} 58. Kf1 {[%clk 0:00:16]}  Nxh3 {[%clk 0:00:06]} 59. Bf3 {[%clk 0:00:15]}  Qxf2# {[%clk 0:00:05]} 0-1


[Site "https://www.chess.com"]

[Event "Titled Tuesday Blitz March 22 Late 2022"]
[White "Luo, Terry"]
[Black "Mikhailov, Viacheslav"]
[WhiteFideId "30931045"]
[BlackFideId "4187369"]
[WhiteElo "2024"]
[BlackElo "2381"]
[Result "0-1"]
[Round "05"]
[TimeControl "180+1"]
[Date "2022.03.22"]
[WhiteClock "0:01:47"]
[BlackClock "0:00:35"]

1. d4 {[%clk 0:03:00]}  Nf6 {[%clk 0:02:10]} 2. c4 {[%clk 0:02:59]}  g6 {[%clk 0:02:10]} 3. Nc3 {[%clk 0:02:59]}  Bg7 {[%clk 0:02:10]} 4. e4 {[%clk 0:02:59]}  O-O {[%clk 0:02:11]} 5. Nf3 {[%clk 0:03:00]}  d6 {[%clk 0:02:11]} 6. Be2 {[%clk 0:03:00]}  Bg4 {[%clk 0:02:12]} 7. O-O {[%clk 0:03:01]}  Nc6 {[%clk 0:02:12]} 8. d5 {[%clk 0:03:00]}  Bxf3 {[%clk 0:02:12]} 9. Bxf3 {[%clk 0:02:59]}  Ne5 {[%clk 0:02:13]} 10. Be2 {[%clk 0:03:00]}  c6 {[%clk 0:02:13]} 11. Be3 {[%clk 0:02:58]}  cxd5 {[%clk 0:02:13]} 12. cxd5 {[%clk 0:02:58]}  a6 {[%clk 0:02:14]} 13. a4 {[%clk 0:02:58]}  Qa5 {[%clk 0:02:13]} 14. Qb3 {[%clk 0:02:58]}  Rfc8 {[%clk 0:02:10]} 15. f3 {[%clk 0:02:56]}  Ned7 {[%clk 0:02:02]} 16. Rfc1 {[%clk 0:02:51]}  Nc5 {[%clk 0:02:00]} 17. Qa3 {[%clk 0:02:51]}  Ncd7 {[%clk 0:01:55]} 18. b4 {[%clk 0:02:44]}  Qd8 {[%clk 0:01:54]} 19. a5 {[%clk 0:02:42]}  h5 {[%clk 0:01:51]} 20. Na4 {[%clk 0:02:41]}  h4 {[%clk 0:01:40]} 21. Rxc8 {[%clk 0:02:38]}  Rxc8 {[%clk 0:01:41]} 22. Rc1 {[%clk 0:02:38]}  h3 {[%clk 0:01:39]} 23. g3 {[%clk 0:02:37]}  Ne5 {[%clk 0:01:38]} 24. Rxc8 {[%clk 0:02:32]}  Qxc8 {[%clk 0:01:39]} 25. Qc1 {[%clk 0:02:28]}  Qe8 {[%clk 0:01:32]} 26. Nb6 {[%clk 0:02:27]}  Kh7 {[%clk 0:01:22]} 27. Qc7 {[%clk 0:02:16]}  Nfd7 {[%clk 0:00:57]} 28. Qxb7 {[%clk 0:01:54]}  Nxb6 {[%clk 0:00:45]} 29. axb6 {[%clk 0:01:54]}  Qa4 {[%clk 0:00:45]} 30. Qxa6 {[%clk 0:01:54]}  Qxb4 {[%clk 0:00:38]} 31. b7 {[%clk 0:01:50]}  Qe1+ {[%clk 0:00:38]} 32. Bf1 {[%clk 0:01:46]}  Qxe3+ {[%clk 0:00:39]} 33. Kh1 {[%clk 0:01:46]}  Qxf3+ {[%clk 0:00:37]} 34. Kg1 {[%clk 0:01:46]}  Qe3+ {[%clk 0:00:33]} 35. Kh1 {[%clk 0:01:47]}  Qxe4+ {[%clk 0:00:34]} 36. Kg1 {[%clk 0:01:47]}  Nf3+ {[%clk 0:00:34]} 37. Kf2 {[%clk 0:01:47]}  Bd4# {[%clk 0:00:35]} 0-1


[Site "https://www.chess.com"]

[Event "Titled Tuesday Blitz March 22 Late 2022"]
[White "Maksimovic, Bojan"]
[Black "Grischuk, Alexander"]
[WhiteFideId "14408120"]
[BlackFideId "4126025"]
[WhiteElo "2448"]
[BlackElo "2762"]
[Result "0-1"]
[Round "05"]
[TimeControl "180+1"]
[Date "2022.03.22"]
[WhiteClock "0:00:01"]
[BlackClock "0:00:07"]

1. e4 {[%clk 0:02:39]}  d5 {[%clk 0:02:59]} 2. exd5 {[%clk 0:02:39]}  Qxd5 {[%clk 0:03:00]} 3. Nc3 {[%clk 0:02:39]}  Qa5 {[%clk 0:03:00]} 4. d4 {[%clk 0:02:39]}  Nf6 {[%clk 0:03:00]} 5. Nf3 {[%clk 0:02:39]}  c6 {[%clk 0:03:01]} 6. Bc4 {[%clk 0:02:38]}  Bf5 {[%clk 0:03:00]} 7. Bd2 {[%clk 0:02:37]}  Nbd7 {[%clk 0:03:00]} 8. Nd5 {[%clk 0:02:16]}  Qd8 {[%clk 0:03:00]} 9. Nxf6+ {[%clk 0:02:15]}  Nxf6 {[%clk 0:03:01]} 10. h3 {[%clk 0:02:12]}  e6 {[%clk 0:03:00]} 11. O-O {[%clk 0:02:10]}  Bd6 {[%clk 0:02:59]} 12. Re1 {[%clk 0:02:10]}  O-O {[%clk 0:02:58]} 13. c3 {[%clk 0:02:09]}  h6 {[%clk 0:02:53]} 14. Qe2 {[%clk 0:02:09]}  Qc7 {[%clk 0:02:52]} 15. Bb3 {[%clk 0:02:05]}  c5 {[%clk 0:02:50]} 16. Rad1 {[%clk 0:02:01]}  Rad8 {[%clk 0:02:47]} 17. Be3 {[%clk 0:01:59]}  Be4 {[%clk 0:02:42]} 18. Nd2 {[%clk 0:01:51]}  Bg6 {[%clk 0:02:25]} 19. Nc4 {[%clk 0:01:51]}  Bh2+ {[%clk 0:02:15]} 20. Kh1 {[%clk 0:01:50]}  Nd5 {[%clk 0:02:14]} 21. dxc5 {[%clk 0:01:42]}  Nxe3 {[%clk 0:02:04]} 22. Qxe3 {[%clk 0:01:29]}  Bf4 {[%clk 0:02:04]} 23. Qf3 {[%clk 0:01:29]}  Rxd1 {[%clk 0:01:44]} 24. Rxd1 {[%clk 0:01:26]}  Bg5 {[%clk 0:01:44]} 25. Nd6 {[%clk 0:00:59]}  Rb8 {[%clk 0:01:44]} 26. Ne4 {[%clk 0:00:25]}  Be7 {[%clk 0:01:43]} 27. Qe3 {[%clk 0:00:12]}  Rd8 {[%clk 0:01:14]} 28. Rxd8+ {[%clk 0:00:11]}  Qxd8 {[%clk 0:01:15]} 29. Bc2 {[%clk 0:00:11]}  Qd5 {[%clk 0:01:10]} 30. b4 {[%clk 0:00:07]}  Qxa2 {[%clk 0:01:10]} 31. Bd3 {[%clk 0:00:07]}  Qd5 {[%clk 0:01:00]} 32. Kh2 {[%clk 0:00:07]}  b6 {[%clk 0:00:55]} 33. cxb6 {[%clk 0:00:06]}  axb6 {[%clk 0:00:56]} 34. g3 {[%clk 0:00:05]}  Qe5 {[%clk 0:00:45]} 35. Kg2 {[%clk 0:00:03]}  Kh8 {[%clk 0:00:38]} 36. Qf3 {[%clk 0:00:01]}  f5 {[%clk 0:00:25]} 37. Nd2 {[%clk 0:00:01]}  Qxc3 {[%clk 0:00:26]} 38. Nc4 {[%clk 0:00:02]}  Qd4 {[%clk 0:00:24]} 39. b5 {[%clk 0:00:02]}  Bc5 {[%clk 0:00:23]} 40. h4 {[%clk 0:00:02]}  Be8 {[%clk 0:00:21]} 41. Qe2 {[%clk 0:00:02]}  Bxb5 {[%clk 0:00:18]} 42. Ne5 {[%clk 0:00:01]}  Qd5+ {[%clk 0:00:17]} 43. Kh2 {[%clk 0:00:01]}  Bxd3 {[%clk 0:00:16]} 44. Nxd3 {[%clk 0:00:02]}  Bd6 {[%clk 0:00:15]} 45. Qe3 {[%clk 0:00:02]}  b5 {[%clk 0:00:15]} 46. Qe2 {[%clk 0:00:01]}  b4 {[%clk 0:00:15]} 47. Qc2 {[%clk 0:00:02]}  b3 {[%clk 0:00:14]} 48. Qd1 {[%clk 0:00:02]}  Kh7 {[%clk 0:00:14]} 49. Nb2 {[%clk 0:00:02]}  Be5 {[%clk 0:00:11]} 50. Qb1 {[%clk 0:00:01]}  Qe4 {[%clk 0:00:08]} 51. Nd3 {[%clk 0:00:01]}  Bd4 {[%clk 0:00:08]} 52. Qxb3 {[%clk 0:00:01]}  Qe2 {[%clk 0:00:08]} 53. Qc4 {[%clk 0:00:01]}  Bxf2 {[%clk 0:00:08]} 54. Kh3 {[%clk 0:00:01]}  Qf1+ {[%clk 0:00:07]} 0-1


[Site "https://www.chess.com"]

[Event "Titled Tuesday Blitz March 22 Late 2022"]
[White "Martin Duque, Jesus"]
[Black "Tsukerman, Julia"]
[WhiteFideId "2208954"]
[BlackFideId "2621649"]
[WhiteElo "2243"]
[BlackElo "2115"]
[Result "1-0"]
[Round "05"]
[TimeControl "180+1"]
[Date "2022.03.22"]
[WhiteClock "0:02:33"]
[BlackClock "0:02:06"]

1. Nf3 {[%clk 0:02:54]}  d5 {[%clk 0:02:59]} 2. b3 {[%clk 0:02:55]}  e6 {[%clk 0:02:59]} 3. Bb2 {[%clk 0:02:56]}  Nf6 {[%clk 0:02:59]} 4. g3 {[%clk 0:02:49]}  Be7 {[%clk 0:02:58]} 5. Bg2 {[%clk 0:02:50]}  O-O {[%clk 0:02:58]} 6. O-O {[%clk 0:02:51]}  c5 {[%clk 0:02:59]} 7. e3 {[%clk 0:02:51]}  Nc6 {[%clk 0:02:59]} 8. Qe2 {[%clk 0:02:51]}  b6 {[%clk 0:02:59]} 9. Rd1 {[%clk 0:02:51]}  Bb7 {[%clk 0:02:59]} 10. d4 {[%clk 0:02:50]}  cxd4 {[%clk 0:02:59]} 11. Nxd4 {[%clk 0:02:49]}  Rc8 {[%clk 0:02:59]} 12. c4 {[%clk 0:02:49]}  Nxd4 {[%clk 0:02:58]} 13. Bxd4 {[%clk 0:02:49]}  Qc7 {[%clk 0:02:57]} 14. Nd2 {[%clk 0:02:44]}  dxc4 {[%clk 0:02:56]} 15. Nxc4 {[%clk 0:02:44]}  Bxg2 {[%clk 0:02:56]} 16. Kxg2 {[%clk 0:02:45]}  Qb7+ {[%clk 0:02:56]} 17. Qf3 {[%clk 0:02:44]}  Qxf3+ {[%clk 0:02:55]} 18. Kxf3 {[%clk 0:02:45]}  Nd5 {[%clk 0:02:53]} 19. Rac1 {[%clk 0:02:45]}  Rfd8 {[%clk 0:02:52]} 20. Ne5 {[%clk 0:02:44]}  Bf6 {[%clk 0:02:43]} 21. Nc6 {[%clk 0:02:39]}  Re8 {[%clk 0:02:08]} 22. Bxf6 {[%clk 0:02:34]}  gxf6 {[%clk 0:02:06]} 23. e4 {[%clk 0:02:33]} 1-0


[Site "https://www.chess.com"]